[Event "Titled Tuesday Blitz June 20 Early 2023"]
[White "Francisco_Ferrari"]
[Black "Szente Varga, Fruzsina"]
[BlackFideId "712264"]
[WhiteElo "2265"]
[BlackElo "1994"]
[Result "0-1"]
[Round "8"]
[TimeControl "180+2"]
[Date "2023.06.20"]
[WhiteClock "0:00:12"]
[BlackClock "0:00:30"]
[Board "142"]

1. e4 {[%clk 0:02:53]}  e5 {[%clk 0:02:58]} 2. Nf3 {[%clk 0:02:54]}  Nc6 {[%clk 0:02:51]} 3. Bc4 {[%clk 0:02:51]}  Nf6 {[%clk 0:02:50]} 4. d3 {[%clk 0:02:49]}  Be7 {[%clk 0:02:50]} 5. O-O {[%clk 0:02:48]}  O-O {[%clk 0:02:50]} 6. c3 {[%clk 0:02:48]}  d5 {[%clk 0:02:47]} 7. exd5 {[%clk 0:02:47]}  Nxd5 {[%clk 0:02:46]} 8. Re1 {[%clk 0:02:47]}  Bg4 {[%clk 0:02:44]} 9. Nbd2 {[%clk 0:02:44]}  Nf4 {[%clk 0:02:42]} 10. Ne4 {[%clk 0:02:36]}  Na5 {[%clk 0:02:35]} 11. h3 {[%clk 0:02:22]}  Nxc4 {[%clk 0:02:24]} 12. Bxf4 {[%clk 0:02:11]}  Nxb2 {[%clk 0:02:08]} 13. Qe2 {[%clk 0:02:00]}  Bxf3 {[%clk 0:01:58]} 14. gxf3 {[%clk 0:01:58]}  Nxd3 {[%clk 0:01:53]} 15. Be3 {[%clk 0:01:47]}  Nxe1 {[%clk 0:01:51]} 16. Rxe1 {[%clk 0:01:48]}  f5 {[%clk 0:01:43]} 17. Nc5 {[%clk 0:01:34]}  Bxc5 {[%clk 0:01:20]} 18. Bxc5 {[%clk 0:01:32]}  Qg5+ {[%clk 0:01:21]} 19. Kh1 {[%clk 0:01:29]}  Rfe8 {[%clk 0:01:21]} 20. Qc4+ {[%clk 0:01:27]}  Kh8 {[%clk 0:01:18]} 21. Rg1 {[%clk 0:01:27]}  Qh5 {[%clk 0:01:15]} 22. Rg3 {[%clk 0:01:01]}  f4 {[%clk 0:01:11]} 23. Rg2 {[%clk 0:01:00]}  Qxh3+ {[%clk 0:01:06]} 24. Kg1 {[%clk 0:01:00]}  Qxf3 {[%clk 0:00:59]} 25. Qf7 {[%clk 0:00:59]}  Qd1+ {[%clk 0:00:59]} 26. Kh2 {[%clk 0:00:56]}  Rg8 {[%clk 0:00:58]} 27. Be7 {[%clk 0:00:49]}  Qd7 {[%clk 0:00:54]} 28. Rg5 {[%clk 0:00:34]}  Raf8 {[%clk 0:00:39]} 29. Qxf8 {[%clk 0:00:16]}  Rxf8 {[%clk 0:00:39]} 30. Bxf8 {[%clk 0:00:17]}  g6 {[%clk 0:00:38]} 31. Rxe5 {[%clk 0:00:16]}  Kg8 {[%clk 0:00:34]} 32. Bc5 {[%clk 0:00:16]}  f3 {[%clk 0:00:32]} 33. Bd4 {[%clk 0:00:15]}  Qg4 {[%clk 0:00:30]} 34. Re8+ {[%clk 0:00:12]}  Kf7 {[%clk 0:00:31]} 35. Re7+ {[%clk 0:00:12]}  Kxe7 {[%clk 0:00:30]} 0-1


[Site "https://www.chess.com"]

[Event "Titled Tuesday Blitz June 20 Early 2023"]
[White "De Souza, Cristiano Gomes"]
[Black "Novikova, Galina"]
[WhiteFideId "2151758"]
[BlackFideId "4157095"]
[WhiteElo "2068"]
[BlackElo "1953"]
[Result "1/2-1/2"]
[Round "8"]
[TimeControl "180+2"]
[Date "2023.06.20"]
[WhiteClock "0:00:09"]
[BlackClock "0:00:03"]
[Board "143"]

1. d4 {[%clk 0:02:59]}  e6 {[%clk 0:02:59]} 2. c4 {[%clk 0:02:57]}  f5 {[%clk 0:02:58]} 3. Nf3 {[%clk 0:02:55]}  Nf6 {[%clk 0:02:58]} 4. g3 {[%clk 0:02:55]}  Be7 {[%clk 0:02:59]} 5. Bg2 {[%clk 0:02:55]}  d6 {[%clk 0:03:00]} 6. O-O {[%clk 0:02:55]}  O-O {[%clk 0:02:51]} 7. Nc3 {[%clk 0:02:56]}  Qe8 {[%clk 0:02:48]} 8. b3 {[%clk 0:02:56]}  Ne4 {[%clk 0:02:46]} 9. Bb2 {[%clk 0:02:57]}  Nd7 {[%clk 0:02:44]} 10. Nd2 {[%clk 0:02:56]}  Nxc3 {[%clk 0:02:27]} 11. Bxc3 {[%clk 0:02:55]}  e5 {[%clk 0:02:25]} 12. f3 {[%clk 0:02:48]}  exd4 {[%clk 0:02:07]} 13. Bxd4 {[%clk 0:02:48]}  Bf6 {[%clk 0:02:08]} 14. Bxf6 {[%clk 0:02:45]}  Qe3+ {[%clk 0:02:07]} 15. Rf2 {[%clk 0:02:44]}  Nxf6 {[%clk 0:02:07]} 16. Nf1 {[%clk 0:02:40]}  Qc5 {[%clk 0:02:01]} 17. Qd2 {[%clk 0:02:39]}  Re8 {[%clk 0:01:53]} 18. Rd1 {[%clk 0:02:38]}  Bd7 {[%clk 0:01:50]} 19. Qd4 {[%clk 0:02:37]}  Qxd4 {[%clk 0:01:44]} 20. Rxd4 {[%clk 0:02:38]}  Bc6 {[%clk 0:01:43]} 21. Nd2 {[%clk 0:02:34]}  Re3 {[%clk 0:01:39]} 22. Rd3 {[%clk 0:02:31]}  Rae8 {[%clk 0:01:39]} 23. Rxe3 {[%clk 0:02:31]}  Rxe3 {[%clk 0:01:39]} 24. Nb1 {[%clk 0:02:14]}  d5 {[%clk 0:01:11]} 25. cxd5 {[%clk 0:02:12]}  Bxd5 {[%clk 0:01:07]} 26. Kf1 {[%clk 0:02:04]}  a5 {[%clk 0:01:07]} 27. Ke1 {[%clk 0:02:04]}  a4 {[%clk 0:01:07]} 28. Kd2 {[%clk 0:02:00]}  axb3 {[%clk 0:01:02]} 29. axb3 {[%clk 0:01:48]}  Rxb3 {[%clk 0:01:03]} 30. Nc3 {[%clk 0:01:43]}  Bc6 {[%clk 0:01:01]} 31. Rf1 {[%clk 0:01:41]}  Ra3 {[%clk 0:00:51]} 32. Rc1 {[%clk 0:01:30]}  Ra8 {[%clk 0:00:50]} 33. Bf1 {[%clk 0:01:29]}  Rd8+ {[%clk 0:00:49]} 34. Ke3 {[%clk 0:01:28]}  Nd5+ {[%clk 0:00:43]} 35. Nxd5 {[%clk 0:01:28]}  Rxd5 {[%clk 0:00:43]} 36. Rc3 {[%clk 0:01:23]}  Kf8 {[%clk 0:00:41]} 37. f4 {[%clk 0:01:19]}  Rd6 {[%clk 0:00:39]} 38. h3 {[%clk 0:01:11]}  Ke7 {[%clk 0:00:37]} 39. g4 {[%clk 0:01:11]}  g6 {[%clk 0:00:38]} 40. g5 {[%clk 0:01:10]}  Kd7 {[%clk 0:00:37]} 41. h4 {[%clk 0:01:09]}  Kc8 {[%clk 0:00:37]} 42. Bh3 {[%clk 0:01:08]}  Bb5 {[%clk 0:00:28]} 43. Kf2 {[%clk 0:01:02]}  b6 {[%clk 0:00:27]} 44. h5 {[%clk 0:01:02]}  Kb7 {[%clk 0:00:26]} 45. hxg6 {[%clk 0:01:01]}  hxg6 {[%clk 0:00:27]} 46. Bg2+ {[%clk 0:01:01]}  Bc6 {[%clk 0:00:25]} 47. Bf3 {[%clk 0:00:50]}  Bxf3 {[%clk 0:00:24]} 48. Kxf3 {[%clk 0:00:47]}  b5 {[%clk 0:00:24]} 49. e4 {[%clk 0:00:46]}  fxe4+ {[%clk 0:00:21]} 50. Kxe4 {[%clk 0:00:47]}  Kb6 {[%clk 0:00:21]} 51. f5 {[%clk 0:00:46]}  gxf5+ {[%clk 0:00:21]} 52. Kxf5 {[%clk 0:00:47]}  b4 {[%clk 0:00:22]} 53. Rc1 {[%clk 0:00:45]}  c5 {[%clk 0:00:20]} 54. g6 {[%clk 0:00:45]}  Rd8 {[%clk 0:00:19]} 55. g7 {[%clk 0:00:45]}  b3 {[%clk 0:00:19]} 56. Ke6 {[%clk 0:00:44]}  Kb5 {[%clk 0:00:17]} 57. Kf7 {[%clk 0:00:43]}  c4 {[%clk 0:00:16]} 58. Re1 {[%clk 0:00:40]}  b2 {[%clk 0:00:15]} 59. Re8 {[%clk 0:00:35]}  Rxe8 {[%clk 0:00:14]} 60. Kxe8 {[%clk 0:00:35]}  b1=Q {[%clk 0:00:15]} 61. g8=Q {[%clk 0:00:34]}  Qe1+ {[%clk 0:00:14]} 62. Kd8 {[%clk 0:00:32]}  Qh4+ {[%clk 0:00:11]} 63. Kc8 {[%clk 0:00:31]}  Qh3+ {[%clk 0:00:10]} 64. Kb7 {[%clk 0:00:29]}  Qf3+ {[%clk 0:00:10]} 65. Ka7 {[%clk 0:00:24]}  Qe3+ {[%clk 0:00:10]} 66. Kb8 {[%clk 0:00:23]}  Qe5+ {[%clk 0:00:10]} 67. Ka8 {[%clk 0:00:19]}  Qe4+ {[%clk 0:00:08]} 68. Kb8 {[%clk 0:00:18]}  Qe5+ {[%clk 0:00:05]} 69. Ka8 {[%clk 0:00:18]}  Qc5 {[%clk 0:00:05]} 70. Qb8+ {[%clk 0:00:15]}  Qb6 {[%clk 0:00:05]} 71. Qe5+ {[%clk 0:00:13]}  Kb4 {[%clk 0:00:06]} 72. Qb2+ {[%clk 0:00:12]}  Kc5 {[%clk 0:00:05]} 73. Qf2+ {[%clk 0:00:12]}  Kb5 {[%clk 0:00:05]} 74. Qb2+ {[%clk 0:00:11]}  Kc6 {[%clk 0:00:05]} 75. Qf6+ {[%clk 0:00:10]}  Kc7 {[%clk 0:00:05]} 76. Qe7+ {[%clk 0:00:10]}  Kc6 {[%clk 0:00:04]} 77. Qf6+ {[%clk 0:00:10]}  Kc5 {[%clk 0:00:03]} 78. Qf2+ {[%clk 0:00:09]}  Kb5 {[%clk 0:00:03]} 79. Qb2+ {[%clk 0:00:09]}  Kc6 {[%clk 0:00:03]} 80. Qf6+ {[%clk 0:00:09]} 1/2-1/2


[Site "https://www.chess.com"]

[Event "Titled Tuesday Blitz June 20 Early 2023"]
[White "Larina, Maria"]
[Black "Abduzhaparov"]
[WhiteFideId "24113182"]
[WhiteElo "1848"]
[BlackElo "2376"]
[Result "1-0"]
[Round "8"]
[TimeControl "180+2"]
[Date "2023.06.20"]
[WhiteClock "0:00:02"]
[BlackClock "0:00:00"]
[Board "144"]

1. e4 {[%clk 0:03:00]}  d6 {[%clk 0:03:00]} 2. d4 {[%clk 0:02:59]}  Nf6 {[%clk 0:03:01]} 3. Nc3 {[%clk 0:02:59]}  e5 {[%clk 0:03:02]} 4. f3 {[%clk 0:02:51]}  Be7 {[%clk 0:02:59]} 5. Be3 {[%clk 0:02:49]}  O-O {[%clk 0:02:58]} 6. Qd2 {[%clk 0:02:49]}  c6 {[%clk 0:02:57]} 7. O-O-O {[%clk 0:02:44]}  Nbd7 {[%clk 0:02:55]} 8. g4 {[%clk 0:02:44]}  b5 {[%clk 0:02:54]} 9. h4 {[%clk 0:02:38]}  Qa5 {[%clk 0:02:41]} 10. Kb1 {[%clk 0:02:36]}  b4 {[%clk 0:02:41]} 11. Nce2 {[%clk 0:02:31]}  d5 {[%clk 0:02:24]} 12. g5 {[%clk 0:02:27]}  Nh5 {[%clk 0:02:24]} 13. f4 {[%clk 0:01:54]}  exf4 {[%clk 0:02:08]} 14. Nxf4 {[%clk 0:01:53]}  Ng3 {[%clk 0:02:02]} 15. Qg2 {[%clk 0:01:27]}  Nxe4 {[%clk 0:01:56]} 16. Nge2 {[%clk 0:01:15]}  Rb8 {[%clk 0:01:55]} 17. Nc1 {[%clk 0:01:03]}  Nb6 {[%clk 0:01:06]} 18. Ka1 {[%clk 0:00:53]}  Na4 {[%clk 0:00:51]} 19. Bd2 {[%clk 0:00:37]}  Nac3 {[%clk 0:00:43]} 20. bxc3 {[%clk 0:00:16]}  Nxc3 {[%clk 0:00:43]} 21. Bxc3 {[%clk 0:00:15]}  bxc3 {[%clk 0:00:44]} 22. Nb3 {[%clk 0:00:14]}  Rxb3 {[%clk 0:00:21]} 23. cxb3 {[%clk 0:00:15]}  Ba3 {[%clk 0:00:20]} 24. Qc2 {[%clk 0:00:13]}  Bb2+ {[%clk 0:00:18]} 25. Kb1 {[%clk 0:00:14]}  Qa3 {[%clk 0:00:18]} 26. Bd3 {[%clk 0:00:14]}  g6 {[%clk 0:00:16]} 27. h5 {[%clk 0:00:14]}  Bg4 {[%clk 0:00:16]} 28. Rdf1 {[%clk 0:00:13]}  Re8 {[%clk 0:00:08]} 29. hxg6 {[%clk 0:00:11]}  fxg6 {[%clk 0:00:08]} 30. Bxg6 {[%clk 0:00:09]}  Bc1 {[%clk 0:00:05]} 31. Bxh7+ {[%clk 0:00:07]}  Kf8 {[%clk 0:00:03]} 32. Nh5+ {[%clk 0:00:06]}  Ke7 {[%clk 0:00:04]} 33. Re1+ {[%clk 0:00:06]}  Kd6 {[%clk 0:00:04]} 34. Qg6+ {[%clk 0:00:04]}  Kc7 {[%clk 0:00:00]} 35. Qc2 {[%clk 0:00:02]} 1-0


[Site "https://www.chess.com"]

[Event "Titled Tuesday Blitz June 20 Early 2023"]
[White "Ziegler, Ari"]
[Black "Xavier_mompel"]
[WhiteFideId "1700987"]
[WhiteElo "2288"]
[BlackElo "2235"]
[Result "0-1"]
[Round "8"]
[TimeControl "180+2"]
[Date "2023.06.20"]
[WhiteClock "0:00:04"]
[BlackClock "0:00:13"]
[Board "145"]

1. e4 {[%clk 0:01:21]}  c5 {[%clk 0:02:59]} 2. Nf3 {[%clk 0:01:22]}  e6 {[%clk 0:02:56]} 3. d4 {[%clk 0:01:21]}  cxd4 {[%clk 0:02:57]} 4. Nxd4 {[%clk 0:01:21]}  Nc6 {[%clk 0:02:56]} 5. Nc3 {[%clk 0:01:22]}  Qc7 {[%clk 0:02:56]} 6. g3 {[%clk 0:01:23]}  a6 {[%clk 0:02:55]} 7. Bg2 {[%clk 0:01:23]}  Nf6 {[%clk 0:02:55]} 8. O-O {[%clk 0:01:23]}  Be7 {[%clk 0:02:55]} 9. Nb3 {[%clk 0:01:21]}  d6 {[%clk 0:02:54]} 10. a4 {[%clk 0:01:22]}  O-O {[%clk 0:02:54]} 11. g4 {[%clk 0:01:22]}  h6 {[%clk 0:02:45]} 12. h4 {[%clk 0:01:22]}  Nh7 {[%clk 0:02:29]} 13. Bf4 {[%clk 0:01:19]}  Ne5 {[%clk 0:02:18]} 14. g5 {[%clk 0:01:15]}  hxg5 {[%clk 0:02:16]} 15. hxg5 {[%clk 0:01:14]}  Ng6 {[%clk 0:02:12]} 16. Be3 {[%clk 0:01:09]}  Bxg5 {[%clk 0:02:01]} 17. f4 {[%clk 0:01:09]}  Bf6 {[%clk 0:01:58]} 18. Qh5 {[%clk 0:01:01]}  Bxc3 {[%clk 0:01:54]} 19. bxc3 {[%clk 0:01:01]}  Nf6 {[%clk 0:01:52]} 20. Qg5 {[%clk 0:00:38]}  Nh7 {[%clk 0:01:47]} 21. Qh5 {[%clk 0:00:37]}  Qxc3 {[%clk 0:01:39]} 22. Rf3 {[%clk 0:00:37]}  Nf6 {[%clk 0:01:33]} 23. Qg5 {[%clk 0:00:37]}  Nxe4 {[%clk 0:01:29]} 24. Qh5 {[%clk 0:00:30]}  Nf6 {[%clk 0:01:23]} 25. Qg5 {[%clk 0:00:29]}  Qxc2 {[%clk 0:01:09]} 26. Nd4 {[%clk 0:00:24]}  Qb2 {[%clk 0:01:07]} 27. Raf1 {[%clk 0:00:22]}  Ne4 {[%clk 0:01:04]} 28. Qh5 {[%clk 0:00:22]}  Nf6 {[%clk 0:00:42]} 29. Qg5 {[%clk 0:00:21]}  Nd5 {[%clk 0:00:15]} 30. f5 {[%clk 0:00:20]}  Nxe3 {[%clk 0:00:14]} 31. fxg6 {[%clk 0:00:20]}  Qxd4 {[%clk 0:00:10]} 32. gxf7+ {[%clk 0:00:19]}  Rxf7 {[%clk 0:00:10]} 33. Rxf7 {[%clk 0:00:17]}  Nf5+ {[%clk 0:00:10]} 34. Kh1 {[%clk 0:00:15]}  Kxf7 {[%clk 0:00:10]} 35. Bh3 {[%clk 0:00:13]}  Kg8 {[%clk 0:00:09]} 36. Rg1 {[%clk 0:00:12]}  Qe4+ {[%clk 0:00:08]} 37. Bg2 {[%clk 0:00:12]}  Qh4+ {[%clk 0:00:06]} 38. Qxh4 {[%clk 0:00:12]}  Nxh4 {[%clk 0:00:07]} 39. Bh3 {[%clk 0:00:12]}  Nf5 {[%clk 0:00:07]} 40. Rd1 {[%clk 0:00:12]}  Bd7 {[%clk 0:00:07]} 41. Kg1 {[%clk 0:00:11]}  Bc6 {[%clk 0:00:06]} 42. Rb1 {[%clk 0:00:11]}  Rf8 {[%clk 0:00:06]} 43. a5 {[%clk 0:00:09]}  Nd4 {[%clk 0:00:06]} 44. Rd1 {[%clk 0:00:08]}  Ne2+ {[%clk 0:00:06]} 45. Kh2 {[%clk 0:00:08]}  Rf2+ {[%clk 0:00:06]} 46. Bg2 {[%clk 0:00:07]}  Rxg2+ {[%clk 0:00:07]} 47. Kh3 {[%clk 0:00:07]}  Nf4+ {[%clk 0:00:07]} 48. Kh4 {[%clk 0:00:07]}  Re2 {[%clk 0:00:08]} 49. Rxd6 {[%clk 0:00:06]}  Kf7 {[%clk 0:00:08]} 50. Rd8 {[%clk 0:00:07]}  Kg6 {[%clk 0:00:08]} 51. Rh8 {[%clk 0:00:06]}  Rh2+ {[%clk 0:00:08]} 52. Kg3 {[%clk 0:00:07]}  Rxh8 {[%clk 0:00:09]} 53. Kxf4 {[%clk 0:00:06]}  Rf8+ {[%clk 0:00:10]} 54. Ke5 {[%clk 0:00:07]}  Rf5+ {[%clk 0:00:10]} 55. Kd6 {[%clk 0:00:07]}  Rxa5 {[%clk 0:00:11]} 56. Kc7 {[%clk 0:00:08]}  Rb5 {[%clk 0:00:12]} 57. Kd6 {[%clk 0:00:04]}  a5 {[%clk 0:00:13]} 0-1


[Site "https://www.chess.com"]

[Event "Titled Tuesday Blitz June 20 Early 2023"]
[White "Lalanne, Pablo"]
[Black "Sariego Figueredo, Wilfredo"]
[WhiteFideId "112151"]
[BlackFideId "3500080"]
[WhiteElo "2120"]
[BlackElo "2309"]
[Result "0-1"]
[Round "8"]
[TimeControl "180+2"]
[Date "2023.06.20"]
[WhiteClock "0:00:28"]
[BlackClock "0:01:45"]
[Board "146"]

1. e4 {[%clk 0:03:00]}  c5 {[%clk 0:02:55]} 2. Nf3 {[%clk 0:03:01]}  a6 {[%clk 0:02:55]} 3. c4 {[%clk 0:03:00]}  Nc6 {[%clk 0:02:55]} 4. d4 {[%clk 0:02:59]}  cxd4 {[%clk 0:02:56]} 5. Nxd4 {[%clk 0:02:58]}  e5 {[%clk 0:02:57]} 6. Nf3 {[%clk 0:02:44]}  Nf6 {[%clk 0:02:55]} 7. Bd3 {[%clk 0:02:42]}  Bb4+ {[%clk 0:02:55]} 8. Nbd2 {[%clk 0:02:36]}  d6 {[%clk 0:02:49]} 9. O-O {[%clk 0:02:35]}  Bg4 {[%clk 0:02:45]} 10. h3 {[%clk 0:02:34]}  Bh5 {[%clk 0:02:45]} 11. Nb3 {[%clk 0:02:23]}  O-O {[%clk 0:02:36]} 12. Bg5 {[%clk 0:02:13]}  h6 {[%clk 0:02:34]} 13. Bh4 {[%clk 0:02:13]}  g5 {[%clk 0:02:32]} 14. Bg3 {[%clk 0:02:12]}  a5 {[%clk 0:02:24]} 15. a3 {[%clk 0:02:11]}  Bc5 {[%clk 0:02:24]} 16. Nxc5 {[%clk 0:01:59]}  dxc5 {[%clk 0:02:25]} 17. Re1 {[%clk 0:01:52]}  Nd7 {[%clk 0:02:20]} 18. Be2 {[%clk 0:01:47]}  f6 {[%clk 0:02:14]} 19. Nh2 {[%clk 0:01:39]}  Bf7 {[%clk 0:02:08]} 20. Ng4 {[%clk 0:01:10]}  Kg7 {[%clk 0:02:06]} 21. Ne3 {[%clk 0:01:09]}  Nd4 {[%clk 0:02:03]} 22. Bh5 {[%clk 0:01:02]}  Bxh5 {[%clk 0:01:58]} 23. Qxh5 {[%clk 0:01:01]}  Nb8 {[%clk 0:01:54]} 24. Rad1 {[%clk 0:00:58]}  Qe8 {[%clk 0:01:53]} 25. Qg4 {[%clk 0:00:55]}  h5 {[%clk 0:01:48]} 26. Nf5+ {[%clk 0:00:28]}  Kh7 {[%clk 0:01:45]} 0-1


[Site "https://www.chess.com"]

[Event "Titled Tuesday Blitz June 20 Early 2023"]
[White "sebastianmarinp"]
[Black "Hartikainen, Jarmo"]
[BlackFideId "503134"]
[WhiteElo "2369"]
[BlackElo "2159"]
[Result "1-0"]
[Round "8"]
[TimeControl "180+2"]
[Date "2023.06.20"]
[WhiteClock "0:00:07"]
[BlackClock "0:00:00"]
[Board "147"]

1. e4 {[%clk 0:03:00]}  c5 {[%clk 0:02:59]} 2. Nf3 {[%clk 0:02:59]}  Nc6 {[%clk 0:02:59]} 3. d4 {[%clk 0:03:00]}  cxd4 {[%clk 0:03:00]} 4. Nxd4 {[%clk 0:03:00]}  Nf6 {[%clk 0:03:00]} 5. Nc3 {[%clk 0:03:01]}  d6 {[%clk 0:03:00]} 6. Bg5 {[%clk 0:03:00]}  Bd7 {[%clk 0:02:59]} 7. Qd2 {[%clk 0:02:42]}  a6 {[%clk 0:02:58]} 8. O-O-O {[%clk 0:02:27]}  e6 {[%clk 0:02:58]} 9. f4 {[%clk 0:02:25]}  h6 {[%clk 0:02:57]} 10. Bxf6 {[%clk 0:02:20]}  Qxf6 {[%clk 0:02:56]} 11. Nb3 {[%clk 0:01:42]}  Qd8 {[%clk 0:02:49]} 12. Be2 {[%clk 0:01:35]}  Be7 {[%clk 0:02:46]} 13. Kb1 {[%clk 0:01:35]}  Qc7 {[%clk 0:02:45]} 14. f5 {[%clk 0:01:25]}  O-O-O {[%clk 0:02:41]} 15. Bh5 {[%clk 0:01:16]}  Rhf8 {[%clk 0:02:31]} 16. Qf2 {[%clk 0:01:01]}  Kb8 {[%clk 0:01:40]} 17. Rhf1 {[%clk 0:00:51]}  Ne5 {[%clk 0:01:31]} 18. Be2 {[%clk 0:00:43]}  Nc4 {[%clk 0:01:23]} 19. Qd4 {[%clk 0:00:39]}  Rc8 {[%clk 0:00:25]} 20. Bxc4 {[%clk 0:00:38]}  Qxc4 {[%clk 0:00:25]} 21. Qxg7 {[%clk 0:00:39]}  b5 {[%clk 0:00:20]} 22. fxe6 {[%clk 0:00:26]}  Bxe6 {[%clk 0:00:19]} 23. Qd4 {[%clk 0:00:22]}  b4 {[%clk 0:00:19]} 24. Qb6+ {[%clk 0:00:14]}  Ka8 {[%clk 0:00:19]} 25. Nd5 {[%clk 0:00:11]}  Bd8 {[%clk 0:00:16]} 26. Qf2 {[%clk 0:00:06]}  Bc7 {[%clk 0:00:12]} 27. Ne7 {[%clk 0:00:05]}  Rb8 {[%clk 0:00:11]} 28. Nd5 {[%clk 0:00:05]}  Qc6 {[%clk 0:00:10]} 29. Nd4 {[%clk 0:00:05]}  Qb7 {[%clk 0:00:09]} 30. Nf5 {[%clk 0:00:05]}  Bxd5 {[%clk 0:00:08]} 31. Rxd5 {[%clk 0:00:05]}  Bb6 {[%clk 0:00:08]} 32. Qd2 {[%clk 0:00:04]}  Bc5 {[%clk 0:00:08]} 33. Rd1 {[%clk 0:00:04]}  Rbd8 {[%clk 0:00:07]} 34. Qd3 {[%clk 0:00:04]}  Ka7 {[%clk 0:00:06]} 35. g3 {[%clk 0:00:03]}  h5 {[%clk 0:00:06]} 36. b3 {[%clk 0:00:03]}  Rfe8 {[%clk 0:00:06]} 37. Nxd6 {[%clk 0:00:02]}  Bxd6 {[%clk 0:00:06]} 38. Rxd6 {[%clk 0:00:03]}  Rxd6 {[%clk 0:00:06]} 39. Qxd6 {[%clk 0:00:03]}  Rxe4 {[%clk 0:00:06]} 40. Qd7 {[%clk 0:00:02]}  Re7 {[%clk 0:00:04]} 41. Qxb7+ {[%clk 0:00:02]}  Kxb7 {[%clk 0:00:05]} 42. Rd5 {[%clk 0:00:02]}  h4 {[%clk 0:00:05]} 43. gxh4 {[%clk 0:00:01]}  Re1+ {[%clk 0:00:05]} 44. Kb2 {[%clk 0:00:01]}  Re2 {[%clk 0:00:06]} 45. Rd4 {[%clk 0:00:02]}  a5 {[%clk 0:00:06]} 46. Rf4 {[%clk 0:00:02]}  Rxh2 {[%clk 0:00:06]} 47. Rxf7+ {[%clk 0:00:02]}  Kb6 {[%clk 0:00:06]} 48. Rf4 {[%clk 0:00:03]}  Kc5 {[%clk 0:00:06]} 49. Kc1 {[%clk 0:00:03]}  Kb5 {[%clk 0:00:06]} 50. Rc4 {[%clk 0:00:03]}  Rg2 {[%clk 0:00:05]} 51. Re4 {[%clk 0:00:04]}  Rh2 {[%clk 0:00:05]} 52. Rf4 {[%clk 0:00:04]}  Rg2 {[%clk 0:00:05]} 53. Re4 {[%clk 0:00:04]}  Rh2 {[%clk 0:00:06]} 54. Re5+ {[%clk 0:00:04]}  Kb6 {[%clk 0:00:06]} 55. h5 {[%clk 0:00:05]}  Ka6 {[%clk 0:00:05]} 56. Kb2 {[%clk 0:00:06]}  Kb6 {[%clk 0:00:06]} 57. a4 {[%clk 0:00:06]}  Ka6 {[%clk 0:00:05]} 58. Rg5 {[%clk 0:00:05]}  Kb6 {[%clk 0:00:05]} 59. Rg6+ {[%clk 0:00:05]}  Kc5 {[%clk 0:00:05]} 60. h6 {[%clk 0:00:06]}  Kd5 {[%clk 0:00:03]} 61. Ra6 {[%clk 0:00:06]}  Kd4 {[%clk 0:00:02]} 62. Rxa5 {[%clk 0:00:07]}  Rxh6 {[%clk 0:00:02]} 63. Rb5 {[%clk 0:00:06]}  Rh2 {[%clk 0:00:01]} 64. Rxb4+ {[%clk 0:00:06]}  Kc5 {[%clk 0:00:02]} 65. Rc4+ {[%clk 0:00:07]}  Kb6 {[%clk 0:00:01]} 66. Ka3 {[%clk 0:00:08]}  Ka5 {[%clk 0:00:01]} 67. Rc5+ {[%clk 0:00:08]}  Kb6 {[%clk 0:00:00]} 68. Rc8 {[%clk 0:00:07]} 1-0


[Site "https://www.chess.com"]

[Event "Titled Tuesday Blitz June 20 Early 2023"]
[White "Baruch, Liam"]
[Black "Sovetbekova, Nurai"]
[WhiteFideId "14322064"]
[BlackFideId "13801910"]
[WhiteElo "2133"]
[BlackElo "1857"]
[Result "0-1"]
[Round "8"]
[TimeControl "180+2"]
[Date "2023.06.20"]
[WhiteClock "0:00:07"]
[BlackClock "0:00:09"]
[Board "149"]

1. e4 {[%clk 0:03:00]}  c5 {[%clk 0:02:58]} 2. Nf3 {[%clk 0:03:00]}  Nc6 {[%clk 0:02:57]} 3. d4 {[%clk 0:03:01]}  cxd4 {[%clk 0:02:58]} 4. Nxd4 {[%clk 0:03:02]}  Nf6 {[%clk 0:02:58]} 5. Nc3 {[%clk 0:03:02]}  e5 {[%clk 0:02:58]} 6. Ndb5 {[%clk 0:03:02]}  d6 {[%clk 0:02:58]} 7. Bg5 {[%clk 0:02:59]}  a6 {[%clk 0:02:59]} 8. Na3 {[%clk 0:03:00]}  b5 {[%clk 0:02:59]} 9. Nd5 {[%clk 0:03:00]}  Be7 {[%clk 0:02:59]} 10. Bxf6 {[%clk 0:03:00]}  Bxf6 {[%clk 0:03:00]} 11. c3 {[%clk 0:03:01]}  Bg5 {[%clk 0:02:58]} 12. Nc2 {[%clk 0:02:56]}  Rb8 {[%clk 0:02:47]} 13. Bd3 {[%clk 0:02:50]}  O-O {[%clk 0:02:44]} 14. O-O {[%clk 0:02:49]}  Be6 {[%clk 0:02:20]} 15. Nce3 {[%clk 0:02:40]}  Ne7 {[%clk 0:02:14]} 16. Nxe7+ {[%clk 0:02:29]}  Qxe7 {[%clk 0:02:11]} 17. Bc2 {[%clk 0:02:17]}  Bxe3 {[%clk 0:01:58]} 18. fxe3 {[%clk 0:02:17]}  b4 {[%clk 0:01:59]} 19. cxb4 {[%clk 0:01:52]}  Rxb4 {[%clk 0:01:58]} 20. b3 {[%clk 0:01:53]}  Rc8 {[%clk 0:01:28]} 21. Qd2 {[%clk 0:01:52]}  Rb7 {[%clk 0:01:23]} 22. Rfd1 {[%clk 0:01:44]}  Rbc7 {[%clk 0:01:15]} 23. Bd3 {[%clk 0:01:43]}  Rc6 {[%clk 0:01:08]} 24. Qe2 {[%clk 0:01:37]}  Qa7 {[%clk 0:01:04]} 25. Kh1 {[%clk 0:01:26]}  h6 {[%clk 0:00:49]} 26. h3 {[%clk 0:01:19]}  Rc3 {[%clk 0:00:42]} 27. Qd2 {[%clk 0:01:16]}  a5 {[%clk 0:00:36]} 28. Rac1 {[%clk 0:00:48]}  Rxc1 {[%clk 0:00:34]} 29. Rxc1 {[%clk 0:00:49]}  Rxc1+ {[%clk 0:00:33]} 30. Qxc1 {[%clk 0:00:50]}  a4 {[%clk 0:00:33]} 31. Bc4 {[%clk 0:00:41]}  Bxc4 {[%clk 0:00:32]} 32. bxc4 {[%clk 0:00:39]}  Qc5 {[%clk 0:00:27]} 33. Qc3 {[%clk 0:00:38]}  Qb6 {[%clk 0:00:26]} 34. Kh2 {[%clk 0:00:33]}  Qb1 {[%clk 0:00:23]} 35. Qa3 {[%clk 0:00:29]}  Qxe4 {[%clk 0:00:17]} 36. Qxd6 {[%clk 0:00:24]}  Qxc4 {[%clk 0:00:15]} 37. Qxe5 {[%clk 0:00:22]}  Qxa2 {[%clk 0:00:15]} 38. Qe8+ {[%clk 0:00:22]}  Kh7 {[%clk 0:00:16]} 39. Qe4+ {[%clk 0:00:23]}  g6 {[%clk 0:00:16]} 40. Qb7 {[%clk 0:00:15]}  Qb3 {[%clk 0:00:14]} 41. Qa8 {[%clk 0:00:10]}  a3 {[%clk 0:00:14]} 42. e4 {[%clk 0:00:08]}  a2 {[%clk 0:00:13]} 43. e5 {[%clk 0:00:07]}  Qb2 {[%clk 0:00:13]} 44. Qe8 {[%clk 0:00:04]}  Qb7 {[%clk 0:00:08]} 45. Qa4 {[%clk 0:00:03]}  Qb2 {[%clk 0:00:07]} 46. Qe8 {[%clk 0:00:03]}  Qf2 {[%clk 0:00:06]} 47. Qa4 {[%clk 0:00:03]}  Qe2 {[%clk 0:00:04]} 48. Qe8 {[%clk 0:00:03]}  Kg7 {[%clk 0:00:04]} 49. Qa4 {[%clk 0:00:02]}  Qxe5+ {[%clk 0:00:04]} 50. g3 {[%clk 0:00:03]}  a1=Q {[%clk 0:00:05]} 51. Qc2 {[%clk 0:00:01]}  Qab2 {[%clk 0:00:05]} 52. Qxb2 {[%clk 0:00:02]}  Qxb2+ {[%clk 0:00:06]} 53. Kg1 {[%clk 0:00:03]}  Qc2 {[%clk 0:00:06]} 54. g4 {[%clk 0:00:04]}  Kf6 {[%clk 0:00:07]} 55. h4 {[%clk 0:00:05]}  Ke5 {[%clk 0:00:08]} 56. g5 {[%clk 0:00:05]}  h5 {[%clk 0:00:08]} 57. Kh1 {[%clk 0:00:05]}  Kf4 {[%clk 0:00:09]} 58. Kg1 {[%clk 0:00:06]}  Kg3 {[%clk 0:00:09]} 59. Kf1 {[%clk 0:00:07]}  Qf2# {[%clk 0:00:09]} 0-1


[Site "https://www.chess.com"]